[Event "Israeli Team U18-ch 2022"]
[Site "Be'er Ya'akov"]
[Date "2022.08.15"]
[Round "4.15"]
[White "Linik, Daniel"]
[Black "Shteiman, Yuval"]
[Result "0-1"]
[ECO "C01"]
[WhiteElo "1476"]
[BlackElo "2034"]
[Annotator "TA"]
[PlyCount "55"]
[EventDate "2022.08.14"]
[EventCountry "ISR"]
[SourceTitle "playchess.com"]
[Source "ChessBase"]
[SourceQuality "1"]
[TimeControl "3000+10"]

{[%evp 15,55,7,23,-49,38,0,20,9,39,6,28,0,18,0,0,-23,-5,-61,-43,-93,-102,-121,-113,-118,-123,-274,-275,-406,-369,-455,-452,-482,-453,-510,-554,-1379,-1692,-1687,-1658,-1836,-948,-29990]} 1. e4 {[%emt 0:01:33]} e6 {[%emt 0:00:04]} 2. Nf3 {[%emt 0:01:12]} d5 {[%emt 0:00:04]} 3. exd5 {[%emt 0:01:32]} exd5 {[%emt 0:00:05]} 4. d4 {[%emt 0:01:03]} Nf6 {[%emt 0:00:09]} 5. Bd3 {[%emt 0:00:28]} Bd6 {[%emt 0:00:04]} 6. h3 {[%emt 0:00:33]} O-O {[%emt 0:00:28]} 7. O-O {[%emt 0:00:27]} h6 {[%emt 0:00:30]} 8. c3 {[%emt 0:00:55]} c5 {[%emt 0:00:48]} 9. Be3 {[%emt 0:01:39] [#] C01: French: Exchange Variation.} ({Better is} 9. dxc5 $11 Bxc5 10. Bf4) 9... Qc7 $146 {[%emt 0:01:17]} (9... c4 $15 10. Bc2 Nc6) ({Predecessor:} 9... Qb6 10. Qc2 Nc6 11. Nbd2 Bd7 12. Bf5 Bxf5 13. Qxf5 cxd4 14. Bxh6 Ne7 15. Qg5 Ng6 16. Nxd4 Bf4 {0-1 (49) Stolze,D (1182)-Salden,F (1575) Leipzig 2003}) 10. Re1 {[%emt 0:01:29]} Nbd7 {[%emt 0:02:01]} 11. Nbd2 {[%emt 0:03:03] The position is equal.} b6 {[%emt 0:01:55]} 12. Rc1 {[%emt 0:09:49]} (12. Nh4 {is more complex.} Nb8 13. Qf3 Nc6 14. Nf5) 12... Bb7 {[%emt 0:00:31]} 13. a3 {[%emt 0:09:03]} a5 {[%emt 0:03:42][%cal Ba7a5,Ba5a4][%mdl 32]} 14. Bf5 {[%emt 0:07:43]} Rfe8 {[%emt 0:01:49]} 15. Nf1 {[%emt 0:04:48]} Ne4 {[%emt 0:01:10]} 16. Qb3 {[%emt 0:03:29]} (16. c4 $11) 16... Ndf6 {[%emt 0:02:36]} 17. Bxe4 {[%emt 0:01:15]} (17. Qc2 $15) 17... dxe4 $17 {[%emt 0:00:20]} 18. N3d2 {[%emt 0:00:01]} a4 {[%emt 0:01:25]} 19. Qc2 {[%emt 0:00:11]} c4 {[%emt 0:03:16] Black is more active.} 20. g3 $2 {[%emt 0:01:08] [#] This costs White the game.} (20. Ng3 $17 {might work better.}) 20... b5 {[%emt 0:31:16] Strongly threatening ...Qd7.} 21. Kh2 {[%emt 0:01:03]} (21. Qd1 $142) 21... Re7 {[%emt 0:00:00]} 22. Re2 {[%emt 0:01:26]} Rae8 {[%emt 0:00:00] Black is clearly winning.} 23. Rce1 {[%emt 0:00:00]} Nd5 {[%emt 0:00:00]} 24. Kg2 {[%emt 0:00:00]} f5 {[%emt 0:00:00] And now ...f4 would win.} 25. f3 {[%emt 0:00:00]} exf3+ {[%emt 0:00:00]} 26. Nxf3 {[%emt 0:00:02]} Qc6 {[%emt 0:00:00]} 27. Qxf5 {[%emt 0:00:06]} Rf8 {[%emt 0:00:00]} 28. Qc2 {[%emt 0:00:23] Weighted Error Value: White=0.75/Black=0.43} 0-1

[Event "Israeli Team U18-ch 2022"]
[Site "Be'er Ya'akov"]
[Date "2022.08.15"]
[Round "4.16"]
[White "Tsirilman, Guy"]
[Black "Cohen, Asaf"]
[Result "0-1"]
[ECO "B81"]
[WhiteElo "2108"]
[BlackElo "1455"]
[Annotator "TA"]
[PlyCount "70"]
[EventDate "2022.08.14"]
[EventCountry "ISR"]
[SourceTitle "playchess.com"]
[Source "ChessBase"]
[SourceQuality "1"]
[TimeControl "3000+10"]

{[%evp 12,70,20,31,50,36,38,11,33,0,15,-10,-16,-8,-17,-16,-14,-24,-12,-35,-40,-46,-47,-66,-56,-72,-64,-73,-63,-75,-72,-79,-81,-66,-70,-113,-69,-74,-61,-78,-87,-84,-80,-80,-75,-102,-90,-151,-145,-265,-270,-373,-278,-263,-272,-326,-323,-432,-321,-358,-256]} 1. e4 {[%emt 0:00:01]} c5 {[%emt 0:00:04]} 2. Nf3 {[%emt 0:00:06]} d6 {[%emt 0:00:05]} 3. d4 {[%emt 0:00:05]} cxd4 {[%emt 0:00:04]} 4. Nxd4 {[%emt 0:00:08]} Nf6 {[%emt 0:00:04][%cal Bg8f6,Bf6d7,Bd7e5,Be5c4,Bc4e3][%mdl 32]} 5. Nc3 {[%emt 0:00:07]} a6 {[%emt 0:00:04]} 6. h3 {[%emt 0:00:06]} e6 {[%emt 0:00:05]} 7. g4 {[%emt 0:00:32]} Nfd7 {[%emt 0:00:09] B81: Sicilian Scheveningen: Keres Attack.} 8. Bg2 {[%emt 0:00:51] 8.g5 deserves study.} Be7 {[%emt 0:00:51]} 9. Be3 {[%emt 0:00:21][%cal Oh3h4]} Nc6 {[%emt 0:00:15] The position is equal.} 10. Qd2 {[%emt 0:01:31]} Nde5 {[%emt 0:00:43]} 11. O-O-O {[%emt 0:01:09] [#]} Nc4 $146 {[%emt 0:00:20]} ({Predecessor:} 11... O-O 12. f4 Nxd4 13. Bxd4 Nc6 14. Bf2 Bd7 15. h4 b5 16. Kb1 Rb8 17. Qd3 Qc7 {½-½ (25) Hernandez Leon,S (2165)-Villavicencio Martinez,A (2320) Santa Cruz de Tenerife 2018}) 12. Qe2 {[%emt 0:00:11]} Nxe3 {[%emt 0:00:07]} 13. Qxe3 {[%emt 0:00:54]} Bd7 {[%emt 0:01:15]} 14. Kb1 {[%emt 0:03:44]} O-O {[%emt 0:00:59]} 15. h4 {[%emt 0:10:16]} Nxd4 {[%emt 0:02:46]} ({Don't play} 15... Bxh4 16. Qh3 $16) 16. Qxd4 {[%emt 0:01:53]} e5 {[%emt 0:00:14]} 17. Qe3 {[%emt 0:00:17]} Bxg4 {[%emt 0:00:19]} 18. Bf3 {[%emt 0:00:37]} Be6 {[%emt 0:01:11]} 19. Rdg1 {[%emt 0:01:26]} Kh8 {[%emt 0:01:50]} 20. Bg4 {[%emt 0:01:14]} b5 {[%emt 0:04:57][%cal Bb7b5,Bb5b4][%mdl 32]} 21. Bf5 {[%emt 0:01:29][%cal Og1g7]} Bf6 {[%emt 0:10:30]} ({But not} 21... Bxh4 {[#]} 22. Bxh7 $1 Kxh7 23. f4 $16) 22. Qh3 {[%emt 0:03:04]} b4 {[%emt 0:02:56]} 23. Nd1 {[%emt 0:05:51][%cal Bc3d1,Bd1e3,Be3g4][%mdl 32]} Bxf5 {[%emt 0:01:48]} 24. Qxf5 {[%emt 0:02:03]} d5 {[%emt 0:00:49]} 25. exd5 {[%emt 0:00:48]} Qxd5 {[%emt 0:00:49]} 26. Ne3 {[%emt 0:00:08]} Qc6 {[%emt 0:04:32]} 27. Ng4 {[%emt 0:03:53]} Rac8 {[%emt 0:03:46]} 28. Rc1 {[%emt 0:03:22]} Rfe8 {[%emt 0:01:01]} 29. Rhg1 {[%emt 0:01:18]} ({Better is} 29. Nxf6 Qxf6 30. Qxf6 gxf6 31. c4) 29... Qe6 $17 {[%emt 0:00:43] Black is more active.} 30. Qf3 {[%emt 0:02:50]} (30. Qxe6 $17 Rxe6 31. h5) 30... Bxh4 $19 {[%emt 0:02:39]} 31. Rge1 {[%emt 0:02:06]} f6 {[%emt 0:01:07]} 32. Rh1 {[%emt 0:00:23]} Bg5 {[%emt 0:00:16]} 33. Rcg1 {[%emt 0:00:47]} Qc6 {[%emt 0:01:09]} ({Don't blunder} 33... Qc4 $2 34. Qf5 Qg8 35. Ne3 $19) 34. Qb3 {[%emt 0:00:59]} Qc4 {[%emt 0:00:58]} 35. Qa4 {[%emt 0:01:02]} e4 {[%emt 0:01:35] Weighted Error Value: White=0.29 (precise) /Black=0.12 (very precise)} 0-1

[Event "Israeli Team U18-ch 2022"]
[Site "Be'er Ya'akov"]
[Date "2022.08.15"]
[Round "4.18"]
[White "Ostrovsky Berman, Noam"]
[Black "Arian, Tal"]
[Result "1-0"]
[ECO "B13"]
[WhiteElo "1778"]
[BlackElo "1258"]
[Annotator "NA RC"]
[PlyCount "37"]
[EventDate "2022.08.14"]
[EventCountry "ISR"]
[SourceTitle "playchess.com"]
[Source "ChessBase"]
[SourceQuality "1"]
[TimeControl "3000+10"]

1. e4 {[%emt 0:00:02]} c6 {[%emt 0:00:01]} 2. d4 {[%emt 0:00:05]} d5 {[%emt 0:00:04]} 3. exd5 {[%emt 0:00:02]} cxd5 {[%emt 0:00:12]} 4. Nc3 {[%emt 0:00:04]} Nf6 {[%emt 0:00:36]} 5. Bf4 {[%emt 0:00:05]} Nc6 {[%emt 0:00:13]} 6. Nb5 {[%emt 0:00:12]} e5 {[%emt 0:03:27]} 7. dxe5 {[%emt 0:00:05]} Ng4 {[%emt 0:11:04]} 8. e6 {[%emt 0:15:45]} Nge5 {[%emt 0:02:01]} 9. exf7+ {[%emt 0:06:45]} Kxf7 {[%emt 0:00:16]} 10. Nf3 {[%emt 0:00:55]} Qe7 {[%emt 0:04:17]} 11. Qxd5+ {[%emt 0:03:58]} Be6 {[%emt 0:02:50]} 12. Nxe5+ {[%emt 0:00:44]} Nxe5 {[%emt 0:00:14]} 13. Qxe5 {[%emt 0:00:18]} Rd8 {[%emt 0:02:07]} 14. Be2 {[%emt 0:02:48]} Qb4+ {[%emt 0:01:38]} 15. c3 {[%emt 0:00:39]} Qxb2 {[%emt 0:00:40]} 16. O-O {[%emt 0:00:49]} Rd5 {[%emt 0:00:20]} 17. Bh5+ {[%emt 0:01:34]} Ke7 {[%emt 0:00:56]} 18. Bg5+ {[%emt 0:00:06]} Kd7 {[%emt 0:00:38]} 19. Qc7# {[%emt 0:00:05]} 1-0

[Event "Israeli Team U18-ch 2022"]
[Site "Be'er Ya'akov"]
[Date "2022.08.15"]
[Round "5.1"]
[White "Levin, Guy"]
[Black "Rozen, Eytan"]
[Result "1/2-1/2"]
[ECO "B37"]
[WhiteElo "2363"]
[BlackElo "2465"]
[Annotator "TA"]
[PlyCount "31"]
[EventDate "2022.08.14"]
[EventCountry "ISR"]
[SourceTitle "playchess.com"]
[Source "ChessBase"]
[SourceQuality "1"]
[TimeControl "3000+10"]

{[%evp 14,31,0,-12,0,0,0,0,0,0,0,-27,0,0,0,-24,-25,-16,0,0]} 1. Nf3 {[%emt 0:00:12]} c5 {[%emt 0:00:35]} 2. c4 {[%emt 0:00:05]} Nc6 {[%emt 0:00:08]} 3. d4 {[%emt 0:00:06]} cxd4 {[%emt 0:00:08]} 4. Nxd4 {[%emt 0:00:02]} g6 {[%emt 0:00:07]} 5. Nc3 {[%emt 0:00:26]} Bg7 {[%emt 0:00:10]} 6. Nc2 {[%emt 0:00:04]} d6 {[%emt 0:00:41]} 7. e4 {[%emt 0:02:37]} Bxc3+ $1 {[%emt 0:00:36][%mdl 4] is more profitable than 7...Nf6 at the moment.} 8. bxc3 {[%emt 0:00:04]} Nf6 {[%emt 0:00:07] B37: Sicilian: Maroczy Bind with 5...Bg7, sidelines.} 9. f3 {[%emt 0:04:05]} Be6 {[%emt 0:03:13]} 10. Be2 {[%emt 0:01:32]} O-O {[%emt 0:00:08]} 11. Bh6 {[%emt 0:06:54]} Re8 {[%emt 0:00:56]} 12. O-O {[%emt 0:01:17] [#]} Ne5 $146 {[%emt 0:02:46]} ({Predecessor:} 12... Rc8 13. Ne3 Qa5 14. Nd5 Bxd5 15. cxd5 Ne5 16. Qd4 Qc5 17. a4 Ned7 18. Rfb1 b6 {½-½ (36) Pantsulaia,L (2601)-Lorparizangeneh,S (2478) Baku 2016}) 13. Ne3 {[%emt 0:00:25]} Rc8 {[%emt 0:01:54][%cal Re6c4]} 14. Qd4 {[%emt 0:03:17]} Nc6 {[%emt 0:00:07]} 15. Qd2 {[%emt 0:00:18]} Ne5 {[%emt 0:00:05]} 16. Qd4 {[%emt 0:31:26] An interesting draw.  Weighted Error Value: White=0.07 (flawless) /Black=0.07 (flawless)} 1/2-1/2

[Event "Israeli Team U18-ch 2022"]
[Site "Be'er Ya'akov"]
[Date "2022.08.15"]
[Round "5.2"]
[White "Milikow, Yoav"]
[Black "Ben Ari, Yannay"]
[Result "1-0"]
[ECO "D37"]
[WhiteElo "2452"]
[BlackElo "2411"]
[Annotator "TA"]
[PlyCount "69"]
[EventDate "2022.08.14"]
[EventCountry "ISR"]
[SourceTitle "playchess.com"]
[Source "ChessBase"]
[SourceQuality "1"]
[TimeControl "3000+10"]

{[%evp 9,69,44,43,37,40,36,22,15,19,-14,14,45,14,17,11,16,16,16,36,27,27,39,40,34,40,44,25,40,86,87,68,19,19,22,18,29,19,0,4,-10,33,29,208,-11,317,316,270,266,385,403,413,410,409,441,436,429,428,419,568,566,522,503]} 1. d4 {[%emt 0:00:03]} d5 {[%emt 0:01:26]} 2. c4 {[%emt 0:00:04]} e6 {[%emt 0:00:04]} 3. Nc3 {[%emt 0:00:04]} h6 {[%emt 0:00:02]} 4. Nf3 {[%emt 0:01:05]} Nf6 {[%emt 0:00:03]} 5. g3 {[%emt 0:03:53]} Bd6 {[%emt 0:02:15]} 6. Bg2 {[%emt 0:00:17] D37: Queen's Gambit Declined: 5 Bf4.} Nc6 {[%emt 0:00:13][%cal Bb8c6,Bc6d4,Bd4f5,Bf5d6][%mdl 32]} 7. O-O {[%emt 0:02:25]} O-O {[%emt 0:00:14]} 8. c5 {[%emt 0:02:38] The position is equal.} Be7 {[%emt 0:00:54]} 9. Bf4 {[%emt 0:04:54] [#]} Ne4 $146 {[%emt 0:15:01]} (9... g5 $5 {[%cal Rg5f4]} 10. Bd2 Ne4 $11) ({Predecessor:} 9... b6 10. cxb6 axb6 11. Rc1 Bd7 12. a3 Re8 13. Re1 Nh5 14. Bd2 f5 15. Nb5 Rf8 {½-½ (52) Solon,N (2306)-Sychev,K (2556) Chess.com INT 2021}) 10. Nxe4 {[%emt 0:11:09]} dxe4 {[%emt 0:00:11]} 11. Ne5 {[%emt 0:00:05] Threatens to win with Nxc6.} Nxd4 {[%emt 0:00:47]} 12. Bxe4 {[%emt 0:00:23]} Bxc5 {[%emt 0:00:35]} 13. Rc1 {[%emt 0:00:24]} Bb6 {[%emt 0:03:19]} 14. e3 {[%emt 0:01:14][%mdl 1024] White has compensation.} Nf5 {[%emt 0:11:04] And now ...Qxd1 would win.} 15. Qh5 {[%emt 0:01:40]} Qe7 {[%emt 0:11:06]} 16. Kh1 {[%emt 0:04:42]} Nd6 {[%emt 0:04:47]} 17. Bb1 {[%emt 0:00:42]} Bd7 {[%emt 0:00:01]} 18. g4 {[%emt 0:02:16] Strongly threatening g5.} f6 {[%emt 0:00:29] [#] Inhibits g5.} (18... Be8 $1 $14) 19. Qg6 $1 $40 {[%emt 0:01:25][%csl Gb1][%cal Rg6h7][%mdl 128] Black is in trouble. 0x0.0019ee2cb54bdp-1022s more active pieces.} f5 {[%emt 0:00:00] ...Be8 is the strong threat.} 20. gxf5 {[%emt 0:00:45]} (20. Nxd7 $14 Qxd7 21. gxf5) 20... Rf6 $11 {[%emt 0:00:46]} 21. Qg2 {[%emt 0:00:59]} exf5 {[%emt 0:00:00]} 22. Nxd7 {[%emt 0:03:06]} Qxd7 {[%emt 0:00:01]} 23. Be5 {[%emt 0:00:41]} Re6 {[%emt 0:00:19]} 24. f4 {[%emt 0:00:01][%cal Bf2f4,Bf4e5,Be5d6][%mdl 32]} Rf8 {[%emt 0:00:18]} (24... Bxe3 $2 25. Bxf5 $1 {[%mdl 512]} Nxf5 26. Rxc7 $16) 25. a3 {[%emt 0:00:46] aiming for Ba2.} Re7 $2 {[%emt 0:00:11] [#]} (25... Bxe3 $2 26. Ba2 Rfe8 27. Rce1 $18) (25... Kh7 $11) 26. Ba2+ $2 {[%emt 0:00:22]} ({White must play} 26. Qg6 $1 $18 {White threatens Ba2+ and mate.} Qe6 27. Qxe6+ Rxe6 28. Ba2) 26... Kh8 $2 {[%emt 0:00:12][%mdl 8192]} (26... Kh7 $1 $11 {and Black has nothing to worry.}) 27. Qg6 $18 {[%emt 0:00:17][%cal Rg6h6]} Rxe5 {[%emt 0:00:06]} 28. fxe5 {[%emt 0:00:02]} Bxe3 {[%emt 0:00:14]} (28... Ne4 {is a better defense.} 29. e6 Qe8 30. Qxe8 Rxe8 31. Rxf5 Nd6) 29. Rce1 {[%emt 0:02:05][%cal Bc1e1,Be1e2,Be2g2][%mdl 32]} ({Less strong is} 29. exd6 Bxc1 30. Rxc1 cxd6 $16) 29... Bd2 {[%emt 0:00:08]} 30. Re2 {[%emt 0:00:16] Dancing on a razor blade.} ({Not} 30. exd6 Bxe1 31. Rxe1 cxd6 $16) 30... Bg5 {[%emt 0:00:13]} 31. exd6 {[%emt 0:00:11]} Qc6+ {[%emt 0:00:02]} 32. Rg2 {[%emt 0:00:08]} Rf6 {[%emt 0:00:14]} 33. Qh5 {[%emt 0:00:17]} Rxd6 {[%emt 0:00:02]} 34. Qf7 {[%emt 0:00:37][%csl Ga2][%cal Rf7g8]} Rd8 {[%emt 0:00:01] Inhibits Qg8+.} 35. Qxf5 {[%emt 0:00:08] Weighted Error Value: White=0.18 (very precise) /Black=0.44} 1-0

[Event "Israeli Team U18-ch 2022"]
[Site "Be'er Ya'akov"]
[Date "2022.08.15"]
[Round "5.3"]
[White "Kochavi, Ori"]
[Black "Milikow, Elie"]
[Result "1-0"]
[ECO "A34"]
[WhiteElo "2364"]
[BlackElo "2433"]
[Annotator "TA"]
[PlyCount "74"]
[EventDate "2022.08.14"]
[EventCountry "ISR"]
[SourceTitle "playchess.com"]
[Source "ChessBase"]
[SourceQuality "1"]
[TimeControl "3000+10"]

{[%evp 17,74,0,0,0,54,-10,34,47,56,52,57,48,49,49,46,28,42,44,109,107,104,75,209,206,216,201,203,141,478,462,603,583,644,544,525,511,713,709,702,715,777,773,876,870,972,960,5447,5202,5335,940,979,932,1680,937,1610,1096,29989,29978,29992]} 1. d3 {[%emt 0:00:27] ChessBase II} d5 {[%emt 0:00:48]} 2. Nf3 {[%emt 0:00:15]} c5 {[%emt 0:01:22]} 3. g3 {[%emt 0:00:34]} Nc6 {[%emt 0:00:38]} 4. Bg2 {[%emt 0:00:40]} Nf6 {[%emt 0:01:22]} 5. O-O {[%emt 0:00:04]} e5 {[%emt 0:01:43]} 6. c4 {[%emt 0:03:07]} Be7 {[%emt 0:03:01]} 7. cxd5 {[%emt 0:00:14]} Nxd5 {[%emt 0:00:13]} 8. Nc3 {[%emt 0:00:32]} Nc7 {[%emt 0:00:34]} 9. Be3 {[%emt 0:03:14]} Be6 {[%emt 0:02:46]} 10. Nd2 {[%emt 0:05:26] A34: Symmetrical English: 2 Nc3, lines with ...d5.} Qd7 {[%emt 0:01:28]} (10... Nd5 $11) 11. Nc4 {[%emt 0:01:34]} (11. Qa4 $1 $14) 11... f6 {[%emt 0:02:57]} (11... Bh3 {keeps more tension.} 12. Bxh3 Qxh3 13. Ne4 b6) 12. Qa4 {[%emt 0:00:57] White is slightly better.} O-O {[%emt 0:10:29]} 13. Bxc6 {[%emt 0:01:46]} bxc6 {[%emt 0:00:15]} 14. Ne4 {[%emt 0:00:50]} Bh3 {[%emt 0:01:32]} 15. Rfc1 {[%emt 0:12:27]} ({But not} 15. Bxc5 Bxc5 16. Nxc5 Qd5 $15) 15... f5 {[%emt 0:06:20]} 16. Nc3 {[%emt 0:01:31] [#]} Qe6 $146 {[%emt 0:05:31]} ({Predecessor:} 16... f4 17. Nxe5 Qe6 18. gxf4 Rf5 19. Kh1 g5 20. Rg1 Kh8 21. Rg3 gxf4 22. Bxf4 Raf8 {1-0 (35) Alingh Prins,J-De Vriese,J Netherlands 1987 Corr Nr. 1 [ChessBase II]}) 17. Nxe5 {[%emt 0:02:18]} Bd6 {[%emt 0:08:19]} ({Black should play} 17... Qxe5 $14 18. Bf4 Qe6 19. Bxc7 Rfc8) 18. Nf3 $16 {[%emt 0:02:56] Threatens to win with Ng5. Pair of Knights!} f4 {[%emt 0:00:33]} 19. Bd2 {[%emt 0:00:03]} ({Not} 19. Bxf4 Bxf4 20. Rc2 c4 $1 21. Qxc4 Qxc4 22. dxc4 Bh6 $17) 19... Qg6 {[%emt 0:01:50]} (19... Qg4 $16) 20. Ne4 $18 {[%emt 0:01:03]} fxg3 {[%emt 0:00:17]} 21. hxg3 {[%emt 0:00:19] Really sharp!} Ne6 {[%emt 0:01:27][%cal Of8f3]} 22. Qxc6 {[%emt 0:04:45] Active counter play!} Rad8 {[%emt 0:00:13][%mdl 8192] This costs Black the game.} (22... Be7 $16 {is tougher.} 23. Nfg5 Rac8) 23. Nxd6 {[%emt 0:02:15]} Nd4 {[%emt 0:00:01] [#]} 24. Nxd4 {[%emt 0:00:18]} Rxd6 {[%emt 0:00:09]} 25. Qh1 {[%emt 0:00:03]} Bg4 {[%emt 0:00:18]} 26. Nf3 {[%emt 0:00:59]} Qf5 {[%emt 0:00:12]} 27. Bf4 {[%emt 0:00:26]} Re6 {[%emt 0:00:04]} 28. e4 {[%emt 0:01:37]} Qg6 {[%emt 0:00:01]} 29. Ne5 {[%emt 0:00:11]} Rxe5 {[%emt 0:00:03]} 30. Bxe5 {[%emt 0:00:03]} Bf3 {[%emt 0:00:26]} 31. Qh4 {[%emt 0:00:09]} Qe6 {[%emt 0:00:14]} 32. Rxc5 {[%emt 0:00:23][%cal Bc1c5,Bc5e5,Be5d5,Bd5d6][%mdl 32]} h6 {[%emt 0:00:09]} 33. Bf4 {[%emt 0:00:58]} Rf7 {[%emt 0:00:10]} 34. Re5 {[%emt 0:00:37]} Qd7 {[%emt 0:00:11]} 35. Rd5 {[%emt 0:00:01]} Qe6 {[%emt 0:00:10]} 36. Rc1 {[%emt 0:00:22] Threatening mate with Rd8+.} Be2 {[%emt 0:00:10]} 37. Rd6 {[%emt 0:00:12]} Qxa2 {[%emt 0:00:10] Weighted Error Value: White=0.19 (very precise) /Black=0.69} 1-0

[Event "Israeli Team U18-ch 2022"]
[Site "Be'er Ya'akov"]
[Date "2022.08.15"]
[Round "5.4"]
[White "Gorshtein, Asaf"]
[Black "Uritsky, Yonathan"]
[Result "0-1"]
[ECO "B24"]
[WhiteElo "2112"]
[BlackElo "2130"]
[Annotator "NA RC"]
[PlyCount "94"]
[EventDate "2022.08.14"]
[EventCountry "ISR"]
[SourceTitle "playchess.com"]
[Source "ChessBase"]
[SourceQuality "1"]
[TimeControl "3000+10"]

1. e4 {[%emt 0:00:10]} c5 {[%emt 0:00:05]} 2. Ne2 {[%emt 0:00:06]} Nc6 {[%emt 0:00:06]} 3. Nbc3 {[%emt 0:00:05]} g6 {[%emt 0:00:04]} 4. g3 {[%emt 0:00:10]} Bg7 {[%emt 0:00:05]} 5. Bg2 {[%emt 0:00:05]} Rb8 {[%emt 0:00:09]} 6. O-O {[%emt 0:01:38]} b5 {[%emt 0:00:02]} 7. d3 {[%emt 0:01:41]} b4 {[%emt 0:00:47]} 8. Nd5 {[%emt 0:01:47]} e6 {[%emt 0:01:03]} 9. Ne3 {[%emt 0:00:09]} Nge7 {[%emt 0:03:14]} 10. f4 {[%emt 0:06:39]} Nd4 {[%emt 0:01:31]} 11. e5 {[%emt 0:01:24]} Ba6 {[%emt 0:02:53]} 12. Nxd4 {[%emt 0:05:37]} cxd4 {[%emt 0:00:01]} 13. Nc4 {[%emt 0:00:16]} Bxc4 {[%emt 0:00:31]} 14. dxc4 {[%emt 0:00:02]} Qb6 {[%emt 0:00:01]} 15. Qd3 {[%emt 0:02:08]} d6 {[%emt 0:03:12]} 16. exd6 {[%emt 0:00:39]} Qxd6 {[%emt 0:00:02]} 17. a3 {[%emt 0:03:07]} a5 {[%emt 0:02:20]} 18. axb4 {[%emt 0:00:05]} axb4 {[%emt 0:00:02]} 19. Bd2 {[%emt 0:02:43]} O-O {[%emt 0:01:06]} 20. Ra7 {[%emt 0:00:43]} Rfd8 {[%emt 0:04:39]} 21. Rfa1 {[%emt 0:00:18]} Nf5 {[%emt 0:01:02]} 22. R1a6 {[%emt 0:01:28]} Qf8 {[%emt 0:01:17]} 23. b3 {[%emt 0:00:54]} Ne3 {[%emt 0:00:02]} 24. Bf3 {[%emt 0:00:26]} h5 {[%emt 0:00:55]} 25. Rc7 {[%emt 0:01:32]} Rdc8 {[%emt 0:02:28]} 26. Rxc8 {[%emt 0:02:18]} Qxc8 {[%emt 0:00:31]} 27. Ra4 {[%emt 0:02:14]} Qc5 {[%emt 0:00:14]} 28. Be4 {[%emt 0:01:43]} Nxc2 {[%emt 0:02:08]} 29. Kh1 {[%emt 0:00:23]} Ne3 {[%emt 0:00:17]} 30. Qb1 {[%emt 0:02:07]} Ng4 {[%emt 0:02:03]} 31. Qe1 {[%emt 0:00:45]} d3 {[%emt 0:01:01]} 32. Rxb4 {[%emt 0:05:15]} Rxb4 {[%emt 0:01:45]} 33. Bxb4 {[%emt 0:00:02]} Qf2 {[%emt 0:02:06]} 34. Bg2 {[%emt 0:00:05]} Qc2 {[%emt 0:02:31]} 35. h3 {[%emt 0:00:50]} Nf2+ {[%emt 0:00:28]} 36. Kh2 {[%emt 0:00:01]} Bd4 {[%emt 0:00:39]} 37. Qd2 {[%emt 0:01:57]} Qxb3 {[%emt 0:00:22]} 38. c5 {[%emt 0:00:03]} Kf8 {[%emt 0:02:16]} 39. c6+ {[%emt 0:01:02]} Ke8 {[%emt 0:00:00]} 40. Bd6 {[%emt 0:00:26]} Bb6 {[%emt 0:06:05]} 41. Qc1 {[%emt 0:00:13]} Qd1 {[%emt 0:00:48]} 42. Qa3 {[%emt 0:03:34]} Ng4+ {[%emt 0:00:18]} 43. hxg4 {[%emt 0:00:02]} Bg1+ {[%emt 0:00:04]} 44. Kh1 {[%emt 0:00:09]} Bc5+ {[%emt 0:00:18]} 45. Kh2 {[%emt 0:00:01]} Bxa3 {[%emt 0:00:20]} 46. Bxa3 {[%emt 0:00:02]} Qc2 {[%emt 0:00:17]} 47. gxh5 {[%emt 0:00:45]} gxh5 {[%emt 0:00:08]} 0-1